bitfinex/quotes_SOLUSD_20240726
["timestamp","ask_amount","ask_price","bid_price","bid_amount"]
[1722005484759,16.85352567,180.88,180.76,26.51]
[1722005485372,45.0,180.87,180.73,26.51]
[1722005485579,1.38275756,180.86,180.74,20.0]
[1722005486268,1.38275756,180.86,180.7,33.1404]
[1722005486468,16.6518,180.83,180.67,26.51]
[1722005486690,46.38319369,180.82,180.67,26.51]
[1722005486859,6.1135,180.79,180.64,276.1381]
[1722005487059,1.38353159,180.78,180.63,26.51]
[1722005487290,46.38353159,180.78,180.63,26.79582098]
[1722005487900,46.38353159,180.78,180.63,26.51]
[1722005489696,15.0167,180.77,180.61,6.3623]
[1722005489987,46.38365744,180.76,180.61,6.3623]
[1722005490196,46.38365744,180.76,180.6,44.75485355]
[1722005490197,46.38365744,180.76,180.6,42.5104]
[1722005491267,46.38365744,180.76,180.61,20.0]
[1722005492884,51.91585744,180.76,180.6,20.0]
[1722005493280,51.91585744,180.76,180.58,22.51447009]
[1722005493478,46.38365744,180.76,180.59,45.0]
[1722005493671,46.38365744,180.76,180.6,20.0]
[1722005493869,51.91585744,180.76,180.6,20.0]
[1722005494073,11.845,180.75,180.6,20.0]
[1722005494287,46.38380476,180.74,180.59,20.0]
[1722005495678,15.0797,180.73,180.59,20.0]
[1722005495874,46.38386268,180.72,180.58,20.0]
[1722005496298,46.38386268,180.72,180.54,32.03800532]
[1722005496487,15.9834,180.7,180.54,29.83]
[1722005496691,46.38413915,180.69,180.54,0.28723992]
[1722005497710,46.38413915,180.69,180.53,20.28730731]
[1722005499605,46.38413915,180.69,180.54,45.0]
[1722005499808,46.38413915,180.69,180.55,20.28730215]
[1722005500395,1.38413915,180.69,180.55,20.28730215]
[1722005501210,1.38413915,180.69,180.55,20.0]
[1722005501384,17.36752939,180.7,180.55,20.28729999]
[1722005501819,45.0,180.69,180.55,20.28729999]
[1722005502002,1.38404751,180.68,180.55,20.28729999]
[1722005503219,45.0,180.69,180.55,20.28729999]
[1722005503424,46.38403873,180.69,180.55,20.28729999]
[1722005503588,45.0,180.69,180.55,20.28729999]
[1722005503795,15.9834,180.7,180.56,45.0]
[1722005503995,15.9834,180.7,180.57,0.2867826]
[1722005504518,15.9834,180.7,180.58,29.83]
[1722005504716,15.9834,180.7,180.59,65.28624723]
[1722005507902,15.549,180.75,180.6,15.3794]
[1722005508198,15.549,180.75,180.62,29.83]
[1722005508413,15.549,180.75,180.63,65.28521178]
[1722005509648,16.63,180.92,180.63,65.28521178]
[1722005509649,16.4966,180.79,180.66,29.83]
[1722005509803,16.4966,180.79,180.67,45.28467402]
[1722005510011,16.4966,180.79,180.68,0.28478955]
[1722005510406,16.4966,180.79,180.66,0.28468596]
[1722005510407,17.8796402,180.79,180.66,0.28468596]
[1722005510642,7.46122915,180.78,180.61,20.2855008]
[1722005510942,5.5321,180.77,180.62,20.0]
[1722005511138,1.38351587,180.76,180.61,0.2855008]
[1722005512138,1.38351587,180.76,180.61,20.2855008]
[1722005512337,1.38351587,180.76,180.62,45.0]
[1722005512538,1.38351587,180.76,180.63,20.0]
[1722005513423,46.38351445,180.77,180.63,20.0]
[1722005513763,1.38351276,180.76,180.63,20.2858201]
[1722005514456,1.38351276,180.76,180.63,20.0]
[1722005514949,45.0,180.77,180.64,0.28582021]
[1722005515333,6.0778,180.78,180.64,45.28582021]
[1722005515639,6.0778,180.78,180.65,26.79534157]
[1722005515953,6.0778,180.78,180.66,65.0]
[1722005516143,6.0778,180.78,180.67,0.28486757]
[1722005516922,1.38311579,180.77,180.66,20.0]
[1722005517541,1.38331689,180.76,180.66,20.0]
[1722005518344,1.38331469,180.77,180.66,20.0]
[1722005518934,6.0778,180.78,180.66,20.0]
[1722005519251,1.38317014,180.77,180.66,20.0]
[1722005519942,6.0778,180.78,180.67,0.28499279]
[1722005520249,6.0778,180.78,180.67,45.28499279]
[1722005520654,1.38313724,180.77,180.66,20.0]
[1722005520948,6.0778,180.78,180.66,20.2853475]
[1722005521265,7.46111535,180.78,180.65,20.0]
[1722005521749,45.0,180.77,180.61,26.79534267]
[1722005522048,1.38351414,180.76,180.62,20.0]
[1722005522247,6.456,180.74,180.58,26.51]
[1722005522450,72.89381942,180.73,180.58,26.51]
[1722005523026,15.7479,180.72,180.55,26.79613]
[1722005523363,5.5344,180.69,180.55,26.51]
[1722005523526,45.0,180.68,180.56,0.28732111]
[1722005523934,46.38400413,180.69,180.55,26.79700003]
[1722005524334,46.38400413,180.69,180.55,0.28700003]
[1722005524535,46.38400413,180.69,180.55,20.28700003]
[1722005524950,51.91830413,180.69,180.55,20.0]
[1722005525155,15.0457,180.67,180.53,20.0]
[1722005525359,46.38426501,180.66,180.53,20.0]
[1722005526865,45.0,180.66,180.54,0.28762616]
[1722005527160,46.38422637,180.66,180.53,20.0]
[1722005528443,45.0,180.66,180.53,20.0]
[1722005528644,46.38426497,180.66,180.53,20.0]
[1722005528957,45.0,180.66,180.54,0.28762255]
[1722005529135,15.0457,180.67,180.54,0.28762255]
[1722005529461,16.4298493,180.67,180.53,20.28734778]
[1722005530961,15.0457,180.67,180.53,20.28734778]
[1722005531163,46.38425077,180.66,180.53,20.0]
[1722005531939,45.0,180.66,180.54,0.28762437]
[1722005532472,45.0,180.66,180.53,20.28754864]
[1722005532844,15.0457,180.67,180.53,20.28754864]
[1722005533053,21.9648581,180.67,180.53,20.0]
[1722005533236,45.0,180.66,180.53,20.0]
[1722005533438,1.38426475,180.65,180.53,20.0]
[1722005533631,1.38426475,180.64,180.53,20.0]
[1722005534069,46.38426486,180.66,180.53,20.0]
[1722005536238,45.0,180.66,180.52,23.23523962]
[1722005536452,1.38432697,180.65,180.52,23.23523962]
[1722005536637,1.38433588,180.64,180.52,22.94745695]
[1722005536840,1.38433588,180.64,180.52,20.7851001]
[1722005537765,1.38433588,180.64,180.52,0.7851001]
[1722005537966,6.92013588,180.64,180.52,0.7851001]
[1722005538160,6.0785,180.62,180.52,0.7851001]
[1722005538972,6.0785,180.62,180.52,1.07329699]
[1722005539266,6.0785,180.62,180.52,0.7851001]
[1722005540182,1.38444761,180.61,180.52,0.7851001]
[1722005541063,6.0785,180.62,180.52,1.07338644]
[1722005542482,15.1618,180.7,180.54,29.85]
[1722005542774,15.1618,180.7,180.55,20.28653923]
[1722005542965,15.1618,180.7,180.55,65.28653923]
[1722005543163,15.1618,180.7,180.58,29.85]
[1722005543368,15.1618,180.7,180.59,65.28613021]
[1722005543883,15.1618,180.7,180.59,20.0]
[1722005544066,16.54559701,180.7,180.59,20.0]
[1722005544270,16.54571341,180.7,180.59,20.0]
[1722005544467,15.1618,180.7,180.59,20.0]
[1722005544656,15.1618,180.7,180.57,20.0]
[1722005544972,15.1618,180.7,180.57,20.28701715]
[1722005545184,16.54575127,180.7,180.57,20.28701715]
[1722005546183,16.54575127,180.7,180.57,46.81701715]
[1722005546484,1.38395022,180.69,180.57,46.53]
[1722005546660,15.1618,180.7,180.57,46.53]
[1722005546859,16.54575019,180.7,180.57,46.53]
[1722005548061,15.1618,180.7,180.58,0.28687055]
[1722005548385,15.2122,180.74,180.6,26.53]
[1722005548677,15.2122,180.74,180.61,0.28609265]
[1722005548885,15.2122,180.74,180.62,15.846]
[1722005549267,1.38362819,180.73,180.62,15.846]
[1722005550277,15.2122,180.74,180.62,15.846]
[1722005550607,16.59582976,180.74,180.62,15.846]
[1722005550887,1.38362971,180.73,180.62,15.846]
[1722005551198,46.38362971,180.73,180.62,15.846]
[1722005552764,45.0,180.73,180.62,15.846]
[1722005553065,1.38362305,180.73,180.62,15.846]
[1722005553261,6.2639,180.76,180.63,0.28609264]
[1722005553881,6.2639,180.76,180.64,6.5078]
[1722005554080,26.53,180.77,180.65,0.28574313]
[1722005554783,17.79374758,180.78,180.65,20.28566365]
[1722005554987,6.3306,180.8,180.65,65.28566365]
[1722005555359,1.38322517,180.79,180.65,0.28512987]
[1722005555557,32.0616,180.78,180.65,20.0]
[1722005555888,11.8616,180.8,180.65,20.28566879]
[1722005556187,46.38322705,180.79,180.65,20.28566879]
[1722005556381,45.0,180.79,180.65,20.28566879]
[1722005557683,46.38323573,180.79,180.65,20.28566879]
[1722005558388,46.38320633,180.79,180.66,45.0]
[1722005558892,45.0,180.79,180.67,0.28508944]
[1722005559266,46.38320943,180.79,180.66,45.2850921]
[1722005559678,45.0,180.79,180.66,45.2850921]
[1722005559869,46.38320751,180.79,180.66,45.2850921]
[1722005560270,50.5314,180.79,180.65,20.28508832]
[1722005560487,45.0,180.79,180.65,20.28508832]
[1722005560790,46.38326323,180.79,180.65,20.28508832]
[1722005560975,45.0,180.79,180.65,20.28508832]
[1722005561291,46.38320981,180.79,180.65,20.0]
[1722005561488,26.53,180.78,180.65,20.0]
[1722005561792,5.5328,180.74,180.62,15.846]
[1722005561974,51.91688898,180.73,180.62,15.846]
[1722005562170,26.53,180.72,180.62,15.846]
[1722005562381,1.38385663,180.71,180.62,15.846]
[1722005562586,1.38385257,180.7,180.62,15.846]
[1722005563590,1.38379828,180.71,180.62,15.846]
[1722005564495,1.38380064,180.72,180.62,15.846]
[1722005564794,1.38380014,180.71,180.62,15.846]
[1722005564995,1.38379805,180.7,180.62,15.846]
[1722005565369,45.0,180.73,180.62,15.846]
[1722005565609,1.38379796,180.73,180.62,15.846]
[1722005566993,45.0,180.74,180.62,15.846]
[1722005567403,45.0,180.74,180.63,0.28596335]
[1722005567580,45.0,180.74,180.62,15.846]
[1722005567778,1.38359004,180.76,180.63,20.0]
[1722005568604,6.91579004,180.76,180.63,20.0]
[1722005568800,45.0,180.75,180.63,20.0]
[1722005569099,1.38359241,180.74,180.63,20.0]
[1722005569896,45.0,180.75,180.63,20.0]
[1722005570107,1.38359315,180.74,180.63,20.0]
[1722005570803,45.0,180.75,180.63,20.0]
[1722005571495,1.38355326,180.74,180.63,20.0]
[1722005571809,46.38355518,180.75,180.63,20.0]
[1722005571987,1.38355518,180.75,180.63,20.0]
[1722005576288,27.91355518,180.75,180.62,15.846]
[1722005576607,45.0,180.74,180.62,15.846]
[1722005576914,26.53,180.72,180.62,15.846]
[1722005577119,46.38395231,180.71,180.62,15.846]
[1722005577413,1.38395192,180.7,180.62,15.846]
[1722005577708,1.38395192,180.7,180.6,6.5552]
[1722005580206,45.0,180.71,180.6,6.5552]
[1722005580514,1.38385797,180.7,180.6,6.5552]
[1722005582810,1.38385797,180.7,180.58,15.8634]
[1722005582811,26.53,180.69,180.58,15.8634]
[1722005583014,51.91914583,180.68,180.58,15.8634]
[1722005583310,51.91914583,180.68,180.55,6.5192]
[1722005583311,1.38437183,180.67,180.55,6.5192]
[1722005583513,32.0652,180.66,180.53,15.3009]
[1722005583824,46.38453711,180.65,180.53,15.3009]
[1722005584010,1.38453038,180.64,180.53,15.3009]
[1722005586944,21.38453038,180.64,180.53,15.3009]
[1722005587147,45.0,180.63,180.53,15.3009]
[1722005587452,1.38452603,180.62,180.53,15.3009]
[1722005587619,21.38452603,180.62,180.53,15.3009]
[1722005587819,45.0,180.61,180.53,15.3009]
[1722005588023,1.3846489,180.6,180.53,15.3009]
[1722005589041,1.3846489,180.6,180.5,6.4133]
[1722005589251,37.5696489,180.6,180.49,15.4286]
[1722005589433,45.0,180.59,180.45,21.4351]
[1722005589635,1.38498127,180.58,180.45,21.4351]
[1722005589832,21.38498127,180.58,180.45,21.4351]
[1722005590032,45.0,180.57,180.45,21.4351]
[1722005590224,1.38496464,180.56,180.45,21.4351]
[1722005591153,45.0,180.57,180.46,0.28888071]
[1722005591330,20.0,180.58,180.46,0.28888071]
[1722005591533,1.38469472,180.57,180.45,21.7237568]
[1722005591756,1.38469472,180.57,180.45,21.4351]
[1722005592059,20.0,180.59,180.46,20.28881139]
[1722005592356,46.38475913,180.58,180.46,20.0]
[1722005592562,20.0,180.57,180.46,20.28885657]
[1722005592737,20.0,180.57,180.46,20.0]
[1722005592933,21.38489184,180.57,180.46,20.0]
[1722005593125,20.0,180.57,180.46,20.0]
[1722005593452,21.38489363,180.57,180.46,20.0]
[1722005593638,20.0,180.57,180.46,20.0]
[1722005594049,21.38485066,180.57,180.46,20.0]
[1722005594841,45.0,180.56,180.46,20.0]
[1722005595152,1.3849808,180.55,180.45,21.4351]
[1722005595352,1.38502413,180.54,180.45,21.4351]
[1722005595854,20.0,180.55,180.45,21.4351]
[1722005596032,45.0,180.56,180.45,21.4351]
[1722005596033,46.38502049,180.56,180.45,21.4351]
[1722005596234,1.38502049,180.56,180.45,21.4351]
[1722005598438,45.0,180.57,180.45,21.4351]
[1722005598646,1.38503092,180.57,180.45,21.4351]
[1722005599132,1.38502698,180.59,180.46,0.28879663]
[1722005599339,44.09987238,180.6,180.46,0.28879663]
[1722005600037,44.09987238,180.6,180.45,21.4351]
[1722005600247,44.09987238,180.6,180.45,21.72366038]
[1722005600653,45.0,180.59,180.45,21.72366038]
[1722005600835,1.38489215,180.58,180.45,21.4351]
[1722005601034,1.38489414,180.57,180.45,21.4351]
[1722005602857,46.38489414,180.57,180.45,21.4351]
[1722005603561,1.38489414,180.57,180.45,21.4351]
[1722005605563,6.92289414,180.57,180.45,21.4351]
[1722005605751,45.0,180.56,180.45,21.4351]
[1722005606259,1.38506407,180.55,180.45,21.4351]
[1722005606564,1.38506473,180.54,180.45,21.4351]
[1722005607563,1.38506292,180.56,180.45,21.4351]
[1722005608266,5.5386,180.55,180.45,21.4351]
[1722005608453,46.3851599,180.54,180.45,21.4351]
[1722005608638,1.3851599,180.54,180.45,21.4351]
[1722005609043,1.38520911,180.53,180.45,21.4351]
[1722005609741,71.53,180.57,180.45,21.4351]
[1722005609945,1.38521103,180.56,180.45,21.4351]
[1722005610663,6.92351103,180.56,180.45,21.4351]
[1722005610856,45.0,180.55,180.45,21.4351]
[1722005611168,1.38525793,180.54,180.45,21.4351]
[1722005611564,17.81977806,180.53,180.4,22.6307]
[1722005611769,5.5408,180.48,180.4,22.6307]
[1722005611949,46.38579458,180.47,180.4,22.6307]
[1722005612343,1.38579458,180.47,180.34,0.7851001]
[1722005612759,6.92689458,180.47,180.34,0.7851001]
[1722005613071,45.0,180.46,180.34,0.7851001]
[1722005613247,1.38579415,180.47,180.34,0.7851001]
[1722005613449,45.0,180.48,180.35,0.29133702]
[1722005613645,45.0,180.49,180.37,22.0228]
[1722005614050,45.0,180.49,180.37,22.31346785]
[1722005614552,1.38553397,180.48,180.37,22.0228]
[1722005614748,1.38565645,180.52,180.37,22.0228]
[1722005615062,1.38549356,180.51,180.37,22.0228]
[1722005616669,26.53,180.5,180.37,22.0228]
[1722005616864,46.38572174,180.49,180.37,22.0228]
[1722005617065,1.3857319,180.48,180.37,22.0228]
[1722005617468,6.9264319,180.48,180.37,22.0228]
[1722005617669,45.0,180.47,180.37,22.0228]
[1722005617864,1.38576102,180.46,180.37,22.0228]
[1722005618759,1.38573551,180.48,180.37,22.0228]
[1722005620165,6.92653551,180.48,180.37,22.0228]
[1722005620360,45.0,180.47,180.37,22.0228]
[1722005620577,1.38588348,180.46,180.34,7.3364001]
[1722005620768,5.5417,180.45,180.34,22.9792001]
[1722005620972,78.45807289,180.44,180.34,22.9792001]
[1722005621179,33.45817289,180.44,180.34,22.9792001]
[1722005621474,45.0,180.43,180.34,22.9792001]
[1722005621675,1.38611235,180.42,180.34,22.9792001]
[1722005623480,26.53,180.41,180.34,22.9792001]
[1722005623786,46.38628021,180.4,180.34,22.9792001]
[1722005623954,45.0,180.4,180.34,22.9792001]
[1722005624775,1.38627632,180.42,180.34,22.9792001]
[1722005626079,1.38605001,180.43,180.34,22.9792001]
[1722005626398,1.385964,180.42,180.34,22.9792001]
[1722005627252,26.53,180.44,180.34,22.9792001]
[1722005627253,46.38610259,180.43,180.34,22.9792001]
[1722005627652,5.5427,180.42,180.34,22.9792001]
[1722005627866,45.0,180.41,180.34,22.9792001]
[1722005628356,1.38612088,180.4,180.34,22.9792001]
[1722005628555,45.0,180.41,180.34,22.9792001]
[1722005628773,46.38613354,180.41,180.34,22.9792001]
[1722005629170,45.0,180.41,180.34,22.9792001]
[1722005629360,71.53,180.41,180.34,22.9792001]
[1722005629879,1.38630305,180.4,180.34,22.9792001]
[1722005630078,1.38630305,180.39,180.34,22.9792001]
[1722005630303,1.38630302,180.4,180.34,0.7851001]
[1722005635395,46.38632818,180.41,180.34,0.7851001]
[1722005635777,45.0,180.41,180.34,0.7851001]
[1722005636909,46.38631017,180.42,180.34,0.7851001]
[1722005637197,51.92891017,180.42,180.34,0.7851001]
[1722005637980,5.5429,180.41,180.34,0.7851001]
[1722005638193,46.38629255,180.4,180.34,0.7851001]
[1722005638975,26.53,180.36,180.34,0.7851001]
[1722005639183,45.0,180.35,180.34,0.7851001]
[1722005639384,46.38656211,180.35,180.34,0.7851001]
[1722005640775,45.0,180.35,180.34,0.7851001]
[1722005640975,46.38658769,180.35,180.34,0.7851001]
[1722005641274,51.93128769,180.35,180.34,0.7851001]
[1722005641470,46.38658769,180.35,180.34,0.7851001]
[1722005641677,45.0,180.35,180.34,0.7851001]
[1722005641902,46.38665639,180.35,180.34,0.7851001]
[1722005642972,46.38664107,180.35,180.34,0.7851001]
[1722005643588,45.0,180.35,180.34,0.7851001]
[1722005643893,46.38660036,180.35,180.34,0.7851001]
[1722005644884,45.0,180.35,180.34,0.7851001]
[1722005645288,46.3866957,180.35,180.34,0.7851001]
[1722005645690,1.38660352,180.35,180.34,0.7851001]
[1722005646786,51.93130352,180.35,180.34,0.7851001]
[1722005647382,46.38660352,180.35,180.31,3.65033035]
[1722005647588,26.53,180.33,180.31,3.65033035]
[1722005647786,46.38691799,180.32,180.31,3.65033035]
[1722005648004,51.93251799,180.32,180.31,3.65033035]
[1722005648500,5.5463,180.3,180.16,16.4706001]
[1722005648808,15.7663,180.31,180.16,16.4706001]
[1722005648809,26.53,180.28,180.16,16.4706001]
[1722005649105,46.38729379,180.27,180.16,16.4706001]
[1722005650616,45.0,180.27,180.16,16.4706001]
[1722005651922,1.38724035,180.26,180.16,16.4706001]
[1722005652287,45.0,180.27,180.16,16.4706001]
[1722005652487,1.38727111,180.3,180.16,16.4706001]
[1722005652690,1.38704156,180.29,180.16,16.4706001]
[1722005653196,27.91683361,180.34,180.18,21.4833]
[1722005653409,27.91683361,180.34,180.19,20.29359765]
[1722005653586,27.91683361,180.34,180.19,20.0]
[1722005654518,33.46193361,180.34,180.19,20.0]
[1722005654719,27.91683361,180.34,180.19,20.0]
[1722005655287,50.5454,180.33,180.19,20.0]
[1722005655491,6.93282748,180.32,180.19,20.0]
[1722005655713,71.53,180.31,180.19,20.0]
[1722005656010,46.38701255,180.3,180.19,20.0]
[1722005656215,1.38696386,180.29,180.19,20.0]
[1722005657013,45.0,180.3,180.19,20.0]
[1722005658408,45.0,180.3,180.18,21.77740341]
[1722005658601,1.38696562,180.29,180.18,21.4833]
[1722005659825,45.0,180.3,180.18,20.4833]
[1722005660326,1.38705189,180.29,180.18,20.4833]
[1722005661309,45.0,180.3,180.18,20.4833]
[1722005661510,46.38705894,180.3,180.18,20.4833]
[1722005662127,45.0,180.3,180.19,0.29414224]
[1722005662426,45.0,180.3,180.19,20.29414224]
[1722005663024,26.53,180.34,180.19,20.29414224]
[1722005663222,26.53,180.37,180.21,16.0147]
[1722005663404,1.38659291,180.38,180.23,22.4769]
[1722005663604,1.38659291,180.38,180.22,46.82321245]
[1722005663605,9.58347085,180.44,180.27,6.4622]
[1722005663830,33.96418323,180.44,180.27,6.75449941]
[1722005664115,5.5426,180.42,180.27,6.4622]
[1722005664318,1.38629681,180.41,180.27,6.75468396]
[1722005665032,1.38625573,180.43,180.28,15.9875]
[1722005665225,1.38610862,180.42,180.28,15.9875]
[1722005665935,32.072,180.44,180.28,15.9875]
[1722005665936,27.91611001,180.44,180.29,20.2920535]
[1722005666140,25.41611001,180.44,180.3,0.29195893]
[1722005666506,25.41611001,180.44,180.31,22.3122]
[1722005667340,30.95821001,180.44,180.31,22.3122]
[1722005667639,25.41611001,180.44,180.31,22.3122]
[1722005667842,45.0,180.43,180.31,22.3122]
[1722005668159,1.38607267,180.42,180.31,22.3122]
[1722005668515,1.38607043,180.42,180.31,22.3122]
[1722005670052,45.0,180.43,180.31,22.3122]
[1722005670345,46.38607183,180.43,180.31,22.3122]
[1722005670554,45.0,180.43,180.31,22.3122]
[1722005673120,46.38595065,180.43,180.31,22.3122]
[1722005673561,1.38595065,180.43,180.31,22.3122]
[1722005673720,45.0,180.44,180.32,0.29163596]
[1722005674041,45.0,180.44,180.33,15.8851]
[1722005674249,45.0,180.44,180.33,16.17646807]
[1722005674624,1.38581142,180.47,180.33,16.17646807]
[1722005674947,46.38579299,180.48,180.34,6.2705]
[1722005675542,46.38579299,180.48,180.35,0.29122523]
[1722005675748,51.92659299,180.48,180.35,0.29122523]
[1722005675957,5.5411,180.47,180.35,0.29122523]
[1722005676136,45.0,180.46,180.35,0.29122523]
[1722005676536,45.0,180.47,180.35,0.29122523]
[1722005677577,1.38576469,180.46,180.34,6.2705]
[1722005677768,45.0,180.47,180.35,0.29122472]
[1722005678068,45.0,180.47,180.34,6.2705]
[1722005678538,46.38576543,180.48,180.34,6.2705]
[1722005679369,46.38576543,180.48,180.35,15.9263]
[1722005679541,1.3857656,180.51,180.37,15.9263]
[1722005679740,6.92502534,180.53,180.38,0.29065028]
[1722005679974,5.5396,180.52,180.38,0.29065028]
[1722005680274,1.3855284,180.51,180.37,16.21682294]
[1722005680563,1.38542677,180.52,180.37,16.21682294]
[1722005680769,1.38534703,180.51,180.38,51.2718]
[1722005680978,1.38534703,180.51,180.39,15.4213]
[1722005681149,5.5393,180.53,180.39,15.71146395]
[1722005681367,27.9153227,180.54,180.38,51.2718]
[1722005681368,1.38527449,180.54,180.42,6.4132]
[1722005681548,32.068,180.57,180.42,6.70279496]
[1722005681549,33.45308562,180.57,180.42,6.70279496]
[1722005682067,27.91508562,180.57,180.42,6.4132]
[1722005682376,32.069,180.54,180.42,6.4132]
[1722005682673,1.38529489,180.53,180.42,6.4132]
[1722005682885,46.38529489,180.53,180.42,6.4132]
[1722005683180,32.0699,180.51,180.42,6.4132]
[1722005683362,46.38547228,180.5,180.42,6.4132]
[1722005684172,1.38546259,180.49,180.42,6.4132]
[1722005684878,46.38546565,180.5,180.42,6.4132]
[1722005685476,26.53,180.54,180.42,6.4132]
[1722005685685,1.38521625,180.53,180.42,6.4132]
[1722005685856,1.38521625,180.55,180.42,6.4132]
[1722005686765,1.38523835,180.54,180.42,6.4132]
[1722005686969,45.0,180.55,180.42,6.4132]
[1722005687177,1.38515552,180.54,180.42,6.4132]
[1722005688785,26.53,180.59,180.44,21.9523]
[1722005688948,5.5368,180.61,180.46,16.208]
[1722005689272,15.5115,180.65,180.48,6.6294]
[1722005689466,1.38463332,180.62,180.48,6.6294]
[1722005690190,33.45103319,180.63,180.49,15.39730426]
[1722005690356,33.45103319,180.63,180.49,15.1088]
[1722005690758,27.91463319,180.63,180.49,15.1088]
[1722005691072,5.5366,180.62,180.49,15.1088]
[1722005691270,5.5366,180.62,180.49,15.39737629]
[1722005691451,6.92146835,180.61,180.49,15.1088]
[1722005691651,51.92178099,180.6,180.49,15.1088]
[1722005691879,5.5374,180.59,180.49,15.1088]
[1722005692053,46.38480481,180.58,180.49,15.1088]
[1722005692547,1.38480482,180.57,180.49,15.1088]
[1722005692952,46.38480482,180.57,180.49,15.1088]
[1722005694960,1.38480482,180.57,180.49,15.1088]
[1722005695352,45.0,180.58,180.49,15.1088]
[1722005695550,1.38494661,180.57,180.49,15.1088]
[1722005695955,1.38494845,180.58,180.49,15.1088]
[1722005696881,51.92234834,180.59,180.49,15.1088]
[1722005698381,46.38494834,180.59,180.49,15.1088]
[1722005698580,26.53,180.57,180.49,15.1088]
[1722005698775,51.92339754,180.56,180.49,15.1088]
[1722005699381,46.38509754,180.56,180.44,15.3856]
[1722005699683,51.92359754,180.56,180.44,15.3856]
[1722005699882,50.5383,180.56,180.44,15.3856]
[1722005700072,1.38508343,180.55,180.44,15.3856]
[1722005700386,1.38508565,180.54,180.44,15.3856]
[1722005701281,1.3850855,180.55,180.44,15.3856]
[1722005701588,1.38508357,180.55,180.44,15.3856]
[1722005701771,1.38508583,180.54,180.44,15.3856]
[1722005702173,50.5383,180.56,180.44,15.3856]
[1722005702362,45.0,180.56,180.44,15.3856]
[1722005702764,1.38506151,180.55,180.44,15.3856]
[1722005702996,32.9688,180.63,180.46,15.2363]
[1722005702997,5.5369,180.61,180.46,15.2363]
[1722005703288,1.38480423,180.61,180.46,15.52521962]
[1722005703494,1.38467596,180.62,180.46,42.05521962]
[1722005703785,6.92117596,180.62,180.47,6.1202]
[1722005703994,6.92117596,180.62,180.48,0.28862036]
[1722005704181,6.92117596,180.62,180.49,16.043]
[1722005704382,5.5365,180.62,180.49,16.33158049]
[1722005705500,5.5368,180.61,180.49,16.043]
[1722005705693,45.0,180.6,180.49,16.043]
[1722005706291,26.53,180.63,180.51,6.0024]
[1722005706673,5.5356,180.65,180.52,16.395]
[1722005706880,6.92001402,180.65,180.53,0.28798312]
[1722005707207,1.38441678,180.68,180.54,16.68291227]
[1722005707502,26.53,180.69,180.56,21.7126]
[1722005707702,26.53,180.69,180.57,0.28693935]
[1722005708081,27.9139793,180.69,180.56,21.7126]
[1722005708281,26.53,180.69,180.57,0.28694816]
[1722005708587,27.91397895,180.69,180.56,21.99953895]
[1722005708770,27.91397895,180.69,180.56,21.7126]
[1722005708986,5.5348,180.68,180.56,21.7126]
[1722005709175,1.38415657,180.67,180.56,21.7126]
[1722005709397,5.5358,180.65,180.56,21.7126]
[1722005709570,46.384376,180.64,180.56,21.7126]
[1722005709779,26.53,180.62,180.56,21.7126]
[1722005710099,45.0,180.61,180.56,21.7126]
[1722005710328,26.53,180.62,180.56,21.7126]
[1722005710818,45.0,180.64,180.56,21.7126]
[1722005711422,46.38437517,180.64,180.56,21.7126]
[1722005711621,51.92027517,180.64,180.56,21.7126]
[1722005711920,5.5365,180.62,180.56,21.7126]
[1722005712099,5.5368,180.61,180.56,21.7126]
[1722005712303,45.0,180.6,180.56,21.7126]
[1722005712502,46.38460941,180.6,180.51,6.3726]
[1722005712701,6.92180941,180.6,180.52,15.2883]
[1722005712915,45.0,180.59,180.52,15.2883]
[1722005713411,51.92190572,180.6,180.52,15.2883]
[1722005713805,46.38470572,180.6,180.52,15.2883]